bitfinex/quotes_SOLUSD_20251009
["timestamp","ask_amount","ask_price","bid_price","bid_amount"]
[1760016576936,4.43150571,225.66,225.61,0.68]
[1760016577140,0.71,225.65,225.61,0.68]
[1760016577341,0.71,225.65,225.59,32.28]
[1760016577737,4.43183832,225.64,225.59,32.28]
[1760016577939,4.43183832,225.64,225.6,0.68]
[1760016578138,5.14183832,225.64,225.59,31.6]
[1760016578338,0.71,225.63,225.59,32.28]
[1760016578639,4.43183832,225.64,225.59,32.28]
[1760016579045,0.71,225.64,225.59,32.28]
[1760016579238,0.71,225.64,225.59,111.08]
[1760016580043,4.43203474,225.63,225.59,111.08]
[1760016580450,4.43203474,225.63,225.59,110.4]
[1760016580846,4.43203474,225.63,225.6,0.68]
[1760016581852,4.43203474,225.63,225.59,110.4]
[1760016582048,4.43203474,225.63,225.59,111.08]
[1760016582431,0.71,225.63,225.59,111.08]
[1760016582645,4.43183832,225.64,225.6,0.72]
[1760016582954,5.11183832,225.64,225.6,0.72]
[1760016583331,15.51143413,225.64,225.59,110.4]
[1760016583527,1.32755961,225.61,225.52,100.32]
[1760016583737,15.51143413,225.64,225.52,100.32]
[1760016583738,1.32755961,225.59,225.52,0.72]
[1760016583940,0.68,225.58,225.53,31.52]
[1760016584231,0.68,225.58,225.53,32.24]
[1760016584430,0.68,225.6,225.54,0.72]
[1760016585643,4.4328206,225.59,225.54,0.72]
[1760016585836,4.4328206,225.59,225.54,0.69]
[1760016586151,5.1128206,225.59,225.54,0.69]
[1760016586948,5.1128206,225.59,225.53,31.52]
[1760016587135,5.1128206,225.59,225.54,0.69]
[1760016587337,4.4328206,225.59,225.54,0.69]
[1760016587552,0.68,225.58,225.54,0.69]
[1760016587751,4.43321363,225.57,225.53,31.52]
[1760016587937,1.32755961,225.55,225.47,79.59]
[1760016588137,1.32755961,225.53,225.47,0.1]
[1760016588350,1.32755961,225.53,225.47,31.62]
[1760016588558,0.68,225.52,225.47,31.62]
[1760016588740,0.68,225.52,225.47,32.31]
[1760016589158,0.68,225.51,225.47,31.62]
[1760016589773,0.68,225.5,225.47,31.62]
[1760016589977,6.44234607,225.49,225.47,0.1]
[1760016590260,0.68,225.48,225.47,0.1]
[1760016592045,25.91498314,225.48,225.47,0.1]
[1760016594275,4.43480852,225.49,225.47,0.1]
[1760016596454,20.8,225.51,225.47,0.1]
[1760016596658,0.68,225.55,225.48,0.69]
[1760016596969,22.12755961,225.54,225.48,0.69]
[1760016597352,20.8,225.54,225.48,0.69]
[1760016599242,4.43399991,225.53,225.48,0.69]
[1760016599439,5.76155952,225.53,225.48,0.69]
[1760016599757,1.32755961,225.49,225.47,0.1]
[1760016600141,2.00755961,225.49,225.47,0.1]
[1760016600341,15.51899968,225.53,225.47,0.1]
[1760016600342,2.00755961,225.48,225.47,0.1]
[1760016600737,20.8,225.5,225.47,0.1]
[1760016601253,4.43498314,225.48,225.47,0.1]
[1760016601456,4.43498314,225.48,225.47,1e-08]
[1760016601634,4.43498314,225.48,225.37,0.79]
[1760016601635,20.8,225.45,225.37,0.1]
[1760016601836,20.8,225.44,225.37,0.1]
[1760016602077,20.8,225.44,225.29,0.1]
[1760016602078,1.32755961,225.38,225.29,0.1]
[1760016602260,1.32755961,225.33,225.29,0.1]
[1760016602681,1.32755961,225.35,225.3,0.79]
[1760016602879,1.32755961,225.33,225.3,0.1]
[1760016603265,24.35964506,225.48,225.3,0.1]
[1760016603462,1.32755961,225.35,225.3,0.79]
[1760016603660,0.68,225.38,225.32,0.79]
[1760016603661,1.32755961,225.38,225.32,0.79]
[1760016603873,20.8,225.41,225.32,5.22812346]
[1760016604077,20.8,225.41,225.33,0.69]
[1760016604375,1.32755961,225.39,225.32,0.1]
[1760016604584,2.00755961,225.4,225.32,4.53809523]
[1760016604784,1.32755961,225.39,225.33,0.69]
[1760016605065,21.48,225.41,225.33,0.69]
[1760016605281,22.12755961,225.42,225.34,4.43773852]
[1760016605474,22.12755961,225.42,225.32,0.1]
[1760016605475,22.12755961,225.42,225.35,0.69]
[1760016605655,1.32755961,225.39,225.32,5.22808567]
[1760016605850,1.32755961,225.39,225.32,0.79]
[1760016606372,5.11573706,225.45,225.35,20.8]
[1760016606573,1.32755961,225.42,225.36,0.69]
[1760016606757,1.32755961,225.39,225.33,0.69]
[1760016607282,20.8,225.42,225.32,0.1]
[1760016607283,4.43773852,225.34,225.32,0.1]
[1760016607489,1.32755961,225.33,225.32,0.1]
[1760016607776,2.00755961,225.33,225.32,0.1]
[1760016608304,20.8,225.32,225.3,0.1]
[1760016608446,1.32755961,225.31,225.29,0.1]
[1760016608756,1.32755961,225.31,225.16,4.54126765]
[1760016608757,10.87647521,225.26,225.16,0.1]
[1760016608963,20.8,225.22,225.16,0.1]
[1760016609163,1.32755961,225.19,225.16,0.1]
[1760016609379,5.76845134,225.18,225.16,0.1]
[1760016609585,25.92089173,225.18,225.16,0.1]
[1760016609783,27.24845134,225.18,225.16,0.1]
[1760016610171,29.45693494,225.18,225.16,0.1]
[1760016610965,24.33604321,225.18,225.16,0.1]
[1760016611163,20.8,225.18,225.16,0.1]
[1760016611365,25.01604321,225.18,225.16,0.1]
[1760016611566,24.33604321,225.18,225.16,0.1]
[1760016611767,3.53604321,225.18,225.16,0.1]
[1760016611994,20.8,225.18,225.16,0.1]
[1760016612177,3.53604321,225.18,225.16,0.1]
[1760016612491,20.8,225.18,225.16,0.1]
[1760016613094,3.53604321,225.19,225.16,0.1]
[1760016613994,25.24060167,225.2,225.16,0.1]
[1760016614182,3.53604321,225.19,225.16,0.1]
[1760016614992,3.53604321,225.18,225.16,0.1]
[1760016615371,8.65693494,225.18,225.16,0.1]
[1760016615681,7.97693494,225.18,225.16,0.1]
[1760016615875,3.53604321,225.18,225.16,0.1]
[1760016616285,25.01604321,225.18,225.16,0.1]
[1760016616589,4.44108895,225.17,225.16,0.1]
[1760016616977,4.44108895,225.17,225.12,0.1]
[1760016616978,20.8,225.14,225.12,0.1]
[1760016617197,3.53604321,225.13,225.12,0.1]
[1760016617804,25.24169934,225.14,225.12,0.1]
[1760016617974,5.99327135,225.26,225.12,0.8]
[1760016618299,3.53604321,225.21,225.12,5.24205096]
[1760016618589,24.33604321,225.21,225.13,0.7]
[1760016619690,7.97640433,225.21,225.14,4.44168073]
[1760016619888,4.44036112,225.21,225.15,0.7]
[1760016620091,7.97640433,225.21,225.15,0.7]
[1760016620470,4.44036112,225.21,225.15,0.7]
[1760016621688,7.97664057,225.2,225.15,0.7]
[1760016621887,7.97664057,225.2,225.12,0.1]
[1760016622097,3.53604321,225.16,225.12,0.1]
[1760016623283,3.53604321,225.14,225.12,0.1]
[1760016623700,4.44148345,225.15,225.12,0.1]
[1760016623907,24.33604321,225.13,225.12,0.1]
[1760016624109,20.8,225.17,225.13,0.7]
[1760016624295,20.8,225.17,225.14,0.7]
[1760016624595,4.21604321,225.16,225.12,0.1]
[1760016624794,20.8,225.17,225.12,0.1]
[1760016625014,3.53604321,225.14,225.12,0.1]
[1760016625402,0.68,225.13,225.12,0.1]
[1760016625889,25.92187802,225.13,225.12,0.1]
[1760016626789,25.24187802,225.13,225.12,0.1]
[1760016627100,28.77792123,225.13,225.12,0.1]
[1760016627679,25.24187802,225.13,225.12,0.1]
[1760016627889,28.77792123,225.13,225.12,0.1]
[1760016628187,25.24187802,225.13,225.12,0.1]
[1760016628500,28.77792123,225.13,225.12,0.1]
[1760016628680,24.33604321,225.13,225.12,0.1]
[1760016628886,3.53604321,225.15,225.12,0.8]
[1760016629078,4.4410278,225.18,225.13,0.7]
[1760016629282,23.97589116,225.25,225.14,0.7]
[1760016629283,4.43951165,225.25,225.14,0.7]
[1760016629483,3.53604321,225.2,225.14,0.7]
[1760016629702,3.53604321,225.18,225.14,0.7]
[1760016629901,3.53604321,225.18,225.12,0.1]
[1760016630203,31.92,225.21,225.13,0.7]
[1760016630407,3.53604321,225.18,225.13,0.7]
[1760016630606,43.71895499,225.25,225.14,0.7]
[1760016630819,20.8,225.21,225.14,0.7]
[1760016632190,25.24037765,225.21,225.12,0.1]
[1760016632504,3.53604321,225.2,225.13,0.7]
[1760016632888,3.53604321,225.18,225.12,0.1]
[1760016633088,3.53604321,225.16,225.12,0.1]
[1760016633987,36.34112806,225.21,225.12,0.1]
[1760016633988,3.53604321,225.14,225.12,0.1]
[1760016634406,8.65785428,225.14,225.12,0.1]
[1760016634587,0.68,225.13,225.12,0.1]
[1760016634788,7.97785428,225.14,225.12,0.1]
[1760016636191,9.60225506,225.13,225.12,0.1]
[1760016638695,10.28225506,225.13,225.12,0.1]
[1760016640209,41.48225506,225.13,225.12,0.1]
[1760016640392,42.16225506,225.13,225.12,0.1]
[1760016640597,42.16225506,225.13,225.12,1e-08]
[1760016641200,42.16225506,225.13,225.11,0.1]
[1760016641201,42.16225506,225.13,225.11,1e-08]
[1760016641499,5.16037704,225.12,225.11,1e-08]
[1760016641903,5.84037704,225.12,225.11,1e-08]
[1760016642306,10.28245237,225.12,225.11,1e-08]
[1760016643343,37.42449296,225.12,225.09,1e-08]
[1760016643526,5.16037704,225.1,225.09,1e-08]
[1760016644015,5.84037704,225.1,225.09,1e-08]
[1760016644506,10.28284705,225.1,225.09,1e-08]
[1760016644915,21.15932226,225.1,225.09,1e-08]
[1760016645214,20.8,225.07,225.06,1e-08]
[1760016645417,57.82037704,225.07,225.06,1e-08]
[1760016645619,69.39685225,225.07,225.06,1e-08]
[1760016646609,73.8399144,225.07,225.06,1e-08]
[1760016647001,31.10343919,225.07,225.06,1e-08]
[1760016647216,62.98343919,225.07,225.06,1e-08]
[1760016647716,73.8599144,225.07,225.06,1e-08]
[1760016648115,10.87647521,225.06,225.03,1e-08]
[1760016648307,36.83685225,225.04,225.03,1e-08]
[1760016648507,73.16050671,225.04,225.03,1e-08]
[1760016648710,73.86050671,225.04,225.03,1e-08]
[1760016648913,20.8,224.96,224.92,0.1]
[1760016649223,5.16037704,224.94,224.92,0.1]
[1760016650021,39.5514123,225.04,224.93,0.72]
[1760016650222,5.16037704,224.95,224.93,0.72]
[1760016650528,9.6059488,224.95,224.92,0.1]
[1760016650746,25.96037704,224.93,224.92,0.1]
[1760016651327,5.86037704,224.93,224.92,0.1]
[1760016651530,5.16037704,224.93,224.92,0.1]
[1760016651831,5.86037704,224.93,224.92,0.1]
[1760016652127,25.96037704,224.93,224.92,0.1]
[1760016652340,37.08037704,224.93,224.92,0.1]
[1760016652637,42.22620463,224.93,224.92,0.1]
[1760016653131,20.8,224.9,224.86,0.1]
[1760016653331,5.16037704,224.87,224.86,0.1]
[1760016653819,25.96037704,224.87,224.86,0.1]
[1760016654624,25.24701383,224.87,224.86,0.1]
[1760016654823,5.16037704,224.87,224.86,0.82]
[1760016655226,31.92,224.89,224.86,0.82]
[1760016655524,11.11529805,224.92,224.86,0.82]
[1760016655525,31.92,224.9,224.86,0.82]
[1760016655709,31.92,224.91,224.86,0.82]
[1760016655904,5.16037704,224.9,224.86,0.82]
[1760016656106,31.92,224.91,224.86,0.82]
[1760016656107,25.96037704,224.91,224.86,0.82]
[1760016656327,5.16037704,224.91,224.86,5.26712412]
[1760016656503,10.87647521,224.99,224.87,0.72]
[1760016656826,5.16037704,224.92,224.87,0.72]
[1760016657031,4.44479717,224.99,224.87,5.16700009]
[1760016657213,5.16037704,224.97,224.88,0.72]
[1760016657408,5.16037704,224.97,224.89,10.87647521]
[1760016657608,5.16037704,224.97,224.9,0.72]
[1760016657921,5.16037704,224.96,224.9,0.72]
[1760016658114,5.16037704,224.98,224.9,0.72]
[1760016658356,5.16037704,225.0,224.9,0.72]
[1760016658530,5.16037704,224.96,224.9,0.72]
[1760016658721,5.16037704,224.97,224.9,0.72]
[1760016659042,4.44462027,225.0,224.9,5.16640667]
[1760016659223,4.44462027,225.0,224.91,0.72]
[1760016659417,11.10822971,225.06,224.91,0.72]
[1760016659731,5.16037704,225.0,224.92,10.87647521]
[1760016659923,20.8,225.02,224.93,0.72]
[1760016660126,5.16037704,225.01,224.93,0.72]
[1760016660319,36.363457,225.05,224.93,0.72]
[1760016660522,11.10850806,225.06,224.93,0.72]
[1760016660523,4.44322292,225.07,224.94,31.67647521]
[1760016660725,5.16037704,225.06,224.96,10.87647521]
[1760016660916,4.44327844,225.06,224.97,0.72]
[1760016661125,5.16037704,225.04,224.97,0.72]
[1760016661431,5.16037704,224.99,224.97,0.72]
[1760016661625,5.16037704,224.98,224.93,0.72]
[1760016661929,5.16037704,224.94,224.87,0.72]
[1760016662108,5.16037704,224.9,224.87,0.72]
[1760016662725,9.60684587,224.9,224.87,0.72]
[1760016662926,5.16037704,224.89,224.87,0.72]
[1760016663118,4.44646883,224.9,224.86,0.1]
[1760016663119,5.16037704,224.88,224.86,0.1]
[1760016663347,5.16037704,224.87,224.86,0.1]
[1760016663629,5.16037704,224.88,224.87,0.72]
[1760016663939,4.44600341,224.93,224.87,0.72]
[1760016664235,19.99999999,225.04,224.87,0.72]
[1760016664236,5.16037704,224.96,224.87,0.72]
[1760016664740,5.16037704,224.96,224.88,4.44681607]
[1760016665032,5.16037704,224.95,224.89,0.72]
[1760016665524,5.16037704,224.98,224.89,0.72]
[1760016665728,5.16037704,224.97,224.89,0.72]
[1760016666118,5.16037704,224.95,224.89,0.72]
[1760016666929,5.16037704,224.96,224.9,4.44642063]
[1760016667138,5.16037704,224.98,224.91,0.72]
[1760016667636,10.87647521,225.07,224.91,0.72]
[1760016667637,15.55161687,225.06,224.92,10.87647521]
[1760016667838,0.7,225.05,224.93,0.72]
[1760016668333,10.87647521,225.11,224.94,10.87647521]
[1760016668334,31.98,225.08,224.94,10.87647521]
[1760016668539,5.16037704,225.04,224.95,0.72]
[1760016668837,0.7,225.04,224.95,0.72]
[1760016669139,5.16037704,224.99,224.95,0.72]
[1760016669321,5.16037704,224.99,224.92,0.72]
[1760016669322,5.16037704,224.97,224.92,0.72]
[1760016669525,20.8,225.01,224.93,0.72]
[1760016669727,4.44108895,225.17,224.97,20.8]
[1760016669950,4.44108895,225.17,224.98,11.59647521]
[1760016669951,5.16037704,225.1,224.98,11.59647521]
[1760016670120,5.16037704,225.1,225.0,10.87647521]
[1760016670320,5.16037704,225.08,225.01,0.72]
[1760016670639,25.96037704,225.12,224.73,22.01798288]
[1760016670814,5.16037704,225.03,224.97,0.72]
[1760016671141,9.60416829,225.04,224.97,0.72]
[1760016671513,4.44379125,225.04,224.97,0.72]
[1760016671715,32.60774288,225.07,224.97,0.72]
[1760016671716,20.8,225.07,224.97,0.72]
[1760016671914,0.7,225.12,224.98,10.87647521]
[1760016672129,4.44148345,225.15,225.0,10.87647521]
[1760016672337,20.8,225.13,225.01,0.72]
[1760016672546,5.16037704,225.02,224.97,32.76]
[1760016672719,5.16037704,225.02,224.98,0.7]
[1760016672920,5.16037704,225.03,224.99,0.7]
[1760016673233,5.16037704,225.04,225.0,0.7]
[1760016673729,4.44289986,225.08,225.01,0.7]
[1760016674047,5.16037704,225.09,225.01,0.7]
[1760016675335,4.44227266,225.11,225.02,4.44404941]
[1760016675336,5.16037704,225.11,225.02,4.44404941]
[1760016675538,5.16037704,225.11,225.03,0.7]
[1760016675849,5.16037704,225.09,225.03,0.7]
[1760016676026,5.16037704,225.1,225.03,0.7]
[1760016676230,5.16037704,225.09,225.03,0.7]
[1760016676428,15.5473033,225.12,225.0,15.32091473]
[1760016676429,5.16037704,225.07,225.0,15.32091473]
[1760016676636,5.16037704,225.08,225.01,0.7]
[1760016677255,4.44306215,225.07,225.01,0.7]
[1760016677455,5.16037704,225.05,224.91,19.99999999]
[1760016677643,5.16037704,225.02,224.96,0.7]
[1760016677960,5.16037704,225.07,224.97,10.87647521]
[1760016678154,5.16037704,225.07,224.98,0.7]
[1760016679254,5.16037704,225.02,224.95,25.24531436]
[1760016679557,5.16037704,225.01,224.95,25.9453553]
[1760016679850,15.5514085,225.06,224.93,10.87647521]
[1760016680155,5.16037704,225.0,224.94,0.7]
[1760016680652,25.24325957,225.06,224.95,10.87647521]
[1760016680825,5.82037704,225.05,224.96,0.7]
[1760016681031,5.16037704,224.99,224.92,5.14593439]
[1760016681528,5.16037704,224.99,224.92,25.94593439]
[1760016681832,5.16037704,225.0,224.93,0.7]
[1760016683241,5.16037704,225.0,224.94,4.44562994]
[1760016683439,11.10885272,225.05,224.94,4.44562994]
[1760016683440,4.44365446,225.04,224.95,0.7]
[1760016683761,5.16037704,225.01,224.95,0.7]
[1760016684152,35.55717623,225.11,224.98,10.87647521]
[1760016684153,0.66,225.08,224.98,10.87647521]
[1760016684353,0.66,225.12,225.0,10.87647521]
[1760016684538,5.16037704,225.11,225.02,10.87647521]
[1760016684741,0.66,225.14,225.04,10.87647521]
[1760016684943,19.99999999,225.31,225.09,20.8]
[1760016685252,5.16037704,225.23,225.13,25.24186201]
[1760016685447,4.44011508,225.22,225.14,20.8]
[1760016685649,5.16037704,225.23,225.14,0.7]
[1760016685835,5.16037704,225.22,225.14,0.7]
[1760016686035,0.66,225.25,225.15,10.87647521]
[1760016686241,5.16037704,225.26,225.16,0.7]
[1760016686430,4.43935421,225.26,225.18,10.87647521]
[1760016686760,9.59912642,225.29,225.19,11.57647521]
[1760016686951,4.43893178,225.28,225.19,11.57647521]
[1760016687147,4.43895752,225.28,225.19,16.01716973]
[1760016687350,4.43934012,225.26,225.19,11.57647521]
[1760016687553,5.16037704,225.27,225.19,16.01716973]
[1760016687847,5.16037704,225.28,225.19,16.01716973]
[1760016688259,4.43893997,225.28,225.19,16.01716973]
[1760016688443,5.16037704,225.29,225.19,16.01716973]
[1760016688756,5.82037704,225.3,225.19,48.11716973]
[1760016688940,5.16037704,225.3,225.19,48.11716973]
[1760016689255,0.66,225.33,225.19,48.11716973]
[1760016689555,1e-08,225.2,225.19,48.11716973]
[1760016690031,1e-08,225.2,225.19,48.56123918]
[1760016690237,1e-08,225.2,225.19,48.11716973]
[1760016691145,1e-08,225.2,225.19,16.01716973]
[1760016691457,1e-08,225.2,225.19,63.75647521]
[1760016692038,1e-08,225.2,225.19,42.95647521]
[1760016692562,1e-08,225.2,225.19,43.65647521]
[1760016692858,1e-08,225.2,225.19,42.95647521]
[1760016693049,1e-08,225.2,225.19,43.65647521]
[1760016693564,1e-08,225.2,225.19,42.97647521]
[1760016693952,5.82037705,225.2,225.19,32.12]
[1760016694158,5.82037705,225.2,225.14,10.87647521]
[1760016694467,5.16037705,225.2,225.16,10.87647521]
[1760016694766,1e-08,225.2,225.16,10.87647521]
[1760016694965,1e-08,225.2,225.18,10.87647521]
[1760016695150,1e-08,225.2,225.19,42.99647521]
[1760016695966,1e-08,225.2,225.18,32.1]
[1760016695967,5.82037705,225.2,225.18,32.1]
[1760016696168,5.82037704,225.19,225.16,32.1]
[1760016696351,5.82037704,225.18,225.16,32.1]
[1760016696553,1e-08,225.2,225.16,32.1]
[1760016696554,5.82037704,225.17,225.16,32.1]
[1760016696741,0.66,225.17,225.16,32.1]
[1760016697069,5.82037704,225.17,225.13,32.12]
[1760016697277,9.60186049,225.15,225.13,32.12]
[1760016697445,10.26186049,225.15,225.13,32.12]
[1760016697642,1e-08,225.2,225.14,10.87647521]
[1760016698841,1e-08,225.2,225.14,11.57647521]
[1760016699466,1e-08,225.2,225.15,4.44148345]
[1760016699636,1e-08,225.2,225.16,10.87647521]
[1760016699848,4.19297919,225.19,225.17,32.14]
[1760016700154,3.53297919,225.19,225.15,10.87647521]
[1760016700461,3.53297919,225.16,225.1,10.87647521]
[1760016700668,3.53297919,225.13,225.1,10.87647521]
[1760016701042,21.46,225.19,225.1,10.87647521]
[1760016701247,3.53297919,225.16,225.1,10.87647521]
[1760016701451,21.46,225.19,225.1,10.87647521]
[1760016701452,3.53297919,225.17,225.1,10.87647521]
[1760016701663,3.53297919,225.17,225.1,15.31892478]
[1760016702074,1e-08,225.2,225.1,15.31892478]
[1760016702075,1e-08,225.2,225.1,36.11892478]
[1760016702253,1e-08,225.2,225.12,10.87647521]
[1760016702456,3.53297919,225.19,225.13,32.14]
[1760016702671,3.53297919,225.17,225.13,32.14]
[1760016702854,3.53297919,225.18,225.13,32.14]
[1760016703054,3.53297919,225.18,225.14,32.16]
[1760016703257,3.53297919,225.15,225.11,10.87647521]
[1760016703562,3.53297919,225.15,225.07,0.69]
[1760016703563,5.11183709,225.14,225.07,10.87647521]
[1760016703746,5.11183709,225.14,225.04,24.60804756]
[1760016703747,3.53297919,225.1,225.05,10.87647521]
[1760016703942,3.53297919,225.08,225.06,32.16]
[1760016704164,16.21603891,225.14,225.06,32.16]
[1760016704366,3.53297919,225.1,225.07,10.87647521]
[1760016704980,3.53297919,225.11,225.07,10.87647521]
[1760016705454,3.53297919,225.12,225.08,0.7]
[1760016705653,3.53297919,225.11,225.07,10.87647521]
[1760016705852,3.53297919,225.08,225.04,10.87647521]
[1760016706151,3.53297919,225.05,225.04,32.16]
[1760016706566,0.7,225.1,225.04,32.16]
[1760016707069,3.53297919,225.09,225.04,32.16]
[1760016707377,4.44183709,225.14,225.05,10.87647521]
[1760016707588,13.33955846,225.19,225.05,10.87647521]
[1760016707589,3.53297919,225.11,225.05,10.87647521]
[1760016707965,3.53297919,225.1,225.05,10.87647521]
[1760016708558,3.53297919,225.09,225.05,10.87647521]
[1760016708878,3.53297919,225.12,225.07,10.87647521]
[1760016709066,20.8,225.14,225.08,32.86]
[1760016709067,3.53297919,225.13,225.08,32.86]
[1760016709278,3.53297919,225.17,225.09,11.57647521]
[1760016709483,3.53297919,225.19,225.11,10.87647521]
[1760016709667,1e-08,225.2,225.12,32.16]
[1760016709989,1e-08,225.2,225.13,10.87647521]
[1760016710166,1e-08,225.2,225.13,11.57647521]
[1760016710369,1e-08,225.2,225.15,10.87647521]
[1760016710682,1e-08,225.2,225.14,0.7]
[1760016710683,1e-08,225.2,225.16,32.18]
[1760016711046,1e-08,225.2,225.18,10.87647521]
[1760016711360,1e-08,225.2,225.17,10.87647521]
[1760016711877,1e-08,225.2,225.18,0.7]
[1760016712248,1e-08,225.2,225.17,15.31753694]
[1760016712450,1e-08,225.2,225.18,0.7]
[1760016713054,1e-08,225.2,225.19,43.73647521]
[1760016713586,1e-08,225.2,225.19,48.17716973]
[1760016713787,1e-08,225.2,225.08,22.21376709]
[1760016713788,1e-08,225.2,225.15,43.03647521]
[1760016714083,1e-08,225.2,225.17,11.57647521]
[1760016714583,1e-08,225.2,225.19,31.67647521]
[1760016714990,4.2329792,225.2,225.15,10.87647521]
[1760016715158,3.53297919,225.17,225.16,32.3]
[1760016715479,3.53297919,225.18,225.17,10.87647521]
[1760016715886,3.53297919,225.19,225.17,10.87647521]
[1760016716054,1e-08,225.2,225.18,0.7]
[1760016716255,1e-08,225.2,225.19,10.87647521]
[1760016716480,1e-08,225.2,225.19,11.57647521]
[1760016717665,1e-08,225.2,225.19,36.81716973]
[1760016718284,1e-08,225.2,225.19,43.15647521]
[1760016719373,3.5329792,225.2,225.19,10.87647521]
[1760016719959,1e-08,225.2,225.19,10.87647521]
[1760016721098,3.5329792,225.2,225.19,10.87647521]
[1760016721394,20.8,225.19,225.09,32.28]
[1760016721570,3.53297919,225.11,225.09,32.28]
[1760016721763,3.53297919,225.13,225.1,10.87647521]
[1760016722080,3.53297919,225.15,225.1,11.57647521]
[1760016722768,3.53297919,225.14,225.1,10.87647521]
[1760016723081,5.14106163,225.18,225.1,10.87647521]
[1760016723283,3.53297919,225.17,225.12,10.87647521]
[1760016723486,3.53297919,225.17,225.12,0.7]
[1760016723860,3.53297919,225.17,225.1,10.87647521]
[1760016724060,3.53297919,225.11,225.07,10.87647521]
[1760016724278,3.53297919,225.08,225.03,36.7638414]
[1760016724493,3.53297919,225.08,225.0,0.7]
[1760016724494,3.53297919,225.05,225.04,32.34]
[1760016724862,3.53297919,225.06,225.04,10.87647521]
[1760016725070,15.54450168,225.16,224.97,32.36]
[1760016725071,4.23297919,225.05,224.97,32.36]
[1760016725376,0.7,225.05,224.99,10.87647521]
[1760016725576,0.7,225.05,224.98,32.36]
[1760016725577,3.53297919,225.12,224.98,32.36]
[1760016725787,3.53297919,225.05,224.98,32.36]
[1760016726085,24.33297919,225.12,224.99,10.87647521]
[1760016726086,3.53297919,225.02,224.99,10.87647521]
[1760016726394,3.53297919,225.01,225.0,10.87647521]
[1760016726686,16.25279061,225.04,225.0,10.87647521]
[1760016726892,3.53297919,225.01,225.0,10.87647521]
[1760016727081,3.53297919,225.01,224.93,0.1]
[1760016727082,4.23297919,225.01,224.93,0.1]
[1760016727281,0.7,225.01,224.95,10.87647521]
[1760016727583,25.24349901,225.05,224.97,10.87647521]
[1760016727786,3.53297919,225.03,224.99,10.87647521]
[1760016728178,32.36,225.15,224.98,32.36]
[1760016728179,0.7,225.1,225.01,10.87647521]
[1760016728382,0.7,225.1,225.0,0.7]
[1760016728383,3.53297919,225.05,225.03,10.87647521]
[1760016728584,3.53297919,225.07,225.03,10.87647521]
[1760016728884,3.53297919,225.05,225.03,10.87647521]
[1760016729262,3.53297919,225.07,225.03,10.87647521]
[1760016729466,3.53297919,225.08,225.05,10.87647521]
[1760016729788,0.7,225.11,225.03,10.87647521]
[1760016729789,3.53297919,225.07,225.03,10.87647521]
[1760016729967,3.53297919,225.05,225.03,10.87647521]
[1760016730167,3.53297919,225.04,225.0,10.87647521]
[1760016730388,3.53297919,225.03,225.02,10.87647521]
[1760016730685,3.53297919,225.03,224.97,10.87647521]
[1760016730895,3.53297919,225.03,224.99,10.87647521]
[1760016731192,3.53297919,225.04,225.01,10.87647521]
[1760016731593,4.44286475,225.08,224.98,10.87647521]
[1760016731594,3.53297919,225.02,224.98,10.87647521]
[1760016731795,3.53297919,225.04,225.0,10.87647521]
[1760016731983,3.53297919,225.05,225.01,0.7]
[1760016732295,4.44264285,225.1,225.03,10.87647521]
[1760016732483,3.53297919,225.04,225.03,10.87647521]
[1760016732687,3.53297919,225.04,225.0,10.87647521]
[1760016732688,4.23297919,225.04,225.0,10.87647521]
[1760016732884,3.53297919,225.01,225.0,10.87647521]
[1760016733085,20.8,225.07,225.0,11.53647521]
[1760016733280,3.53297919,225.04,225.0,10.87647521]
[1760016733481,3.53297919,225.04,225.0,11.53647521]
[1760016733781,3.53297919,225.06,225.02,10.87647521]